fUST/lending_fUST_20240414
["ID","MTS","AMOUNT","RATE_DAILY","PERIOD"]
[322567422,1713071351130,-602.08574197,0.00024191,2]
[322567423,1713071351151,-538.85499397,0.00024192,2]
[322567424,1713071351176,-887.638271,0.00024193,2]
[322567425,1713071351197,-9554.70298201,0.00025186,2]
[322567426,1713071351235,-2583.06595926,0.00025187,2]
[322567427,1713071351255,-241.01674728,0.00025188,2]
[322567428,1713071351276,-1487.55149135,0.00025188,2]
[322567429,1713071351304,-300.0,0.00025188,2]
[322567430,1713071351336,-300.0,0.00025188,2]
[322567431,1713071351356,-1043.93750712,0.00025189,2]
[322567432,1713071351375,-687.97368772,0.00025189,2]
[322567433,1713071351402,-1932.85012401,0.00025189,2]
[322567434,1713071351434,-518.9022578,0.0002519,2]
[322567435,1713071351454,-953.50598159,0.0002519,2]
[322567436,1713071351485,-272.19257405,0.0002519,2]
[322567437,1713071351507,-1088.50885786,0.00025191,2]
[322567438,1713071351528,-2095.50910525,0.00025191,2]
[322567439,1713071351548,-500.0,0.00025192,2]
[322567440,1713071351570,-2939.15683596,0.00025192,2]
[322567441,1713071351594,-1618.41046623,0.00025193,2]
[322567442,1713071351614,-1966.28966028,0.00025193,2]
[322567443,1713071351634,-7853.36285856,0.00025193,2]
[322567444,1713071351654,-22771.62604295,0.00025193,2]
[322567445,1713071351678,-500.0,0.00025196,2]
[322567446,1713071351699,-500.0,0.00025196,2]
[322567447,1713071351721,-500.0,0.00025196,2]
[322567448,1713071351741,-500.0,0.00025196,2]
[322567449,1713071351761,-500.0,0.00025196,2]
[322567450,1713071351781,-500.0,0.00025196,2]
[322567451,1713071351801,-463.82913053,0.00025196,2]
[322567452,1713071351822,-500.0,0.00025196,2]
[322567453,1713071351843,-500.0,0.00025196,2]
[322567454,1713071351864,-500.0,0.00025196,2]
[322567455,1713071351884,-500.0,0.00025196,2]
[322567456,1713071351904,-500.0,0.00025196,2]
[322567457,1713071351926,-500.0,0.00025196,2]
[322567458,1713071351945,-500.0,0.00025196,2]
[322567459,1713071351965,-500.0,0.00025196,2]
[322567460,1713071351985,-500.0,0.00025196,2]
[322567461,1713071352005,-500.0,0.00025196,2]
[322567462,1713071352025,-500.0,0.00025196,2]
[322567463,1713071352045,-500.0,0.00025196,2]
[322567464,1713071352130,-500.0,0.00025196,2]
[322567465,1713071352151,-500.0,0.00025196,2]
[322567466,1713071352174,-500.0,0.00025196,2]
[322567467,1713071352193,-218.20323672,0.00025196,2]
[322567468,1713071352213,-3978.71843319,0.00025197,2]
[322567469,1713071386716,154.98450155,0.00022398,2]
[322567474,1713071402616,309.69022615,0.00020156,2]
[322567475,1713071416598,5000.0,0.000252,7]
[322567476,1713071422471,385.30778688,0.00020156,2]
[322567477,1713071422837,627.86397454,0.00020156,2]
[322567478,1713071422867,15436.13575177,0.00020156,2]
[322567479,1713071424130,19156.23345846,0.00020156,2]
[322567480,1713071425049,2824.62214179,0.000252,7]
[322567481,1713071428645,284.81223636,0.00020156,2]
[322567499,1713071432002,220.16288978,0.00020156,2]
[322567500,1713071436835,523.06438682,0.00024995,4]
[322567549,1713071438135,-771.80567051,0.00024995,2]
[322567550,1713071438189,-243.05404661,0.00024994,2]
[322567552,1713071438198,-1323.70343474,0.00024995,2]
[322567554,1713071438207,-2583.06595926,0.00024995,2]
[322567556,1713071438216,-518.9022578,0.00024995,2]
[322567558,1713071438226,-304.17480318,0.00024995,2]
[322567559,1713071438236,-155.0,0.00024995,2]
[322567561,1713071438245,-622.54237814,0.00024995,2]
[322567563,1713071438254,-1088.50885786,0.00024995,2]
[322567565,1713071438263,-207.50225952,0.00024995,2]
[322567567,1713071438272,-525.35430968,0.00024995,2]
[322567569,1713071438280,-953.50598159,0.00024996,2]
[322567571,1713071438289,-538.85499397,0.00024996,2]
[322567572,1713071438298,-1043.93750712,0.00024996,2]
[322567573,1713071438307,-272.19257405,0.00024996,2]
[322567574,1713071438315,-602.08574197,0.00024996,2]
[322567575,1713071438324,-500.0,0.00024996,2]
[322567576,1713071438333,-1618.41046623,0.00024997,2]
[322567577,1713071438342,-467.40907987,0.00024998,2]
[322567578,1713071438350,-216.04571923,0.00024999,2]
[322567579,1713071438359,-237.30347714,0.00025,2]
[322567580,1713071438368,-22771.62604295,0.00025189,2]
[322567581,1713071438377,-7853.36285856,0.0002519,2]
[322567582,1713071438386,-9554.70298201,0.0002519,2]
[322567583,1713071438395,-500.0,0.0002519,2]
[322567584,1713071438403,-500.0,0.0002519,2]
[322567585,1713071438412,-300.0,0.00025191,2]
[322567586,1713071438421,-300.0,0.00025191,2]
[322567587,1713071438430,-59048.78648612,0.00025191,2]
[322567588,1713071438439,-11375.17490435,0.00025192,2]
[322567589,1713071438448,-906.68877107,0.00025193,2]
[322567590,1713071438457,-181.28335515,0.00025193,2]
[322567591,1713071438468,-608.9706492,0.00025194,2]
[322567592,1713071438477,-3739.92568584,0.00025194,2]
[322567593,1713071438488,-5572.91627015,0.00025194,2]
[322567594,1713071438497,-1259.56840948,0.00025195,2]
[322567595,1713071438506,-155.49580829,0.00025195,2]
[322567596,1713071438515,-887.82162217,0.00025195,2]
[322567597,1713071438524,-155.0,0.00025195,2]
[322567598,1713071438532,-282.66664621,0.00025195,2]
[322567599,1713071438541,-157.42885592,0.00025196,2]
[322567600,1713071438550,-186.95780629,0.00025196,2]
[322567601,1713071438560,-1808.28650513,0.00025196,2]
[322567602,1713071438568,-323.547508,0.00025196,2]
[322567603,1713071438577,-155.37295157,0.00025197,2]
[322567604,1713071438586,-11962.22979981,0.00025197,2]
[322567605,1713071438595,-309.79490421,0.00025197,2]
[322567606,1713071438604,-155.94653306,0.00025197,2]
[322567607,1713071438613,-875.877051,0.00025199,2]
[322567608,1713071438622,-637.22188632,0.000252,2]
[322567609,1713071438632,-150.0,0.000259,2]
[322567610,1713071438641,-250.0,0.00026035,2]
[322567611,1713071438650,-1244.7072983,0.00026035,2]
[322567612,1713071438658,-420.0,0.00027285,2]
[322567613,1713071438667,-161.887467,0.00027397,2]
[322567614,1713071438676,-420.0,0.0002771,2]
[322567615,1713071438685,-197.62022707,0.00027944,2]
[322567616,1713071438696,-2547.63425446,0.00027998,2]
[322567617,1713071438706,-945.43646848,0.00027998,2]
[322567618,1713071438716,-155.24450836,0.00027998,2]
[322567619,1713071438727,-156.98521287,0.00027998,2]
[322567620,1713071438742,-193.77563575,0.00027998,2]
[322567621,1713071438752,-173.67326272,0.00027998,2]
[322567622,1713071438763,-155.80459589,0.00027998,2]
[322567623,1713071438773,-294.74641469,0.00027998,2]
[322567624,1713071438783,-284.14432949,0.00027998,2]
[322567625,1713071438792,-156.63566121,0.00027998,2]
[322567626,1713071438802,-1965.83017866,0.00027999,2]
[322567627,1713071438811,-754.74892087,0.00028,2]
[322567628,1713071438820,-237.93432944,0.00028,2]
[322567629,1713071438829,-155.87710472,0.00028,2]
[322567630,1713071438839,-254.35595739,0.00028,2]
[322567631,1713071438848,-31912.65930867,0.00028,14]
[322567632,1713071438857,-521.48508425,0.00028,5]
[322567633,1713071438931,-587.0,0.00029553,2]
[322567634,1713071438940,-259.72436546,0.0003,5]
[322567635,1713071438949,-587.0,0.00030481,2]
[322567636,1713071438958,-150.0,0.000309,2]
[322567637,1713071438968,-182.0,0.00032,30]
[322567638,1713071438977,-823.0,0.00032009,2]
[322567639,1713071438989,-937.6099038,0.00032423,2]
[322567640,1713071438999,-823.0,0.00033529,2]
[322567641,1713071439007,-925.12169132,0.00034198,4]
[322567642,1713071439016,-1322.0,0.00034555,10]
[322567643,1713071439025,-779.0,0.0003467,2]
[322567644,1713071439034,-180.0,0.00035,30]
[322567645,1713071439042,-161.887467,0.00035225,2]
[322567646,1713071439051,-712.563984,0.00035616,120]
[322567647,1713071439060,-473.75008714,0.00035997,4]
[322567648,1713071439069,-163.03060061,0.00035998,4]
[322567649,1713071439078,-210.95250326,0.00035998,2]
[322567650,1713071439087,-164.23284093,0.00035998,4]
[322567651,1713071439096,-240.00775575,0.00035998,3]
[322567652,1713071439105,-264.83807896,0.00035998,7]
[322567653,1713071439114,-191.04250759,0.00035998,4]
[322567654,1713071439122,-273.23364602,0.00035998,30]
[322567655,1713071439131,-155.15014511,0.00035998,4]
[322567656,1713071439141,-173.27140503,0.00035998,4]
[322567657,1713071439150,-470.55371564,0.00035998,4]
[322567658,1713071439158,-211.66364517,0.00035998,4]
[322567659,1713071439167,-155.30900033,0.00035999,4]
[322567660,1713071439176,-233.86268296,0.00035999,15]
[322567661,1713071439185,-500.0,0.00035999,15]
[322567662,1713071439194,-500.0,0.00035999,15]
[322567663,1713071439203,-444.67564297,0.00035999,15]
[322567664,1713071439212,-605.9221929,0.00035999,15]
[322567665,1713071439222,-513.51475989,0.00035999,15]
[322567666,1713071439231,-500.0,0.00035999,15]
[322567667,1713071439240,-500.0,0.00035999,15]
[322567668,1713071439249,-500.0,0.00035999,15]
[322567669,1713071439258,-500.0,0.00035999,15]
[322567670,1713071439267,-500.0,0.00035999,15]
[322567671,1713071439276,-209.29326008,0.00035999,15]
[322567672,1713071439285,-500.0,0.00035999,15]
[322567673,1713071439294,-234.84664508,0.00035999,15]
[322567674,1713071439303,-482.0929602,0.00035999,15]
[322567675,1713071439312,-500.0,0.00035999,15]
[322567676,1713071439321,-500.0,0.00035999,15]
[322567677,1713071439330,-500.0,0.00035999,15]
[322567678,1713071439339,-422.09305904,0.00035999,15]
[322567679,1713071439348,-500.0,0.00035999,15]
[322567680,1713071439357,-500.0,0.00035999,15]
[322567681,1713071439366,-183.47292162,0.00035999,15]
[322567683,1713071439375,-98254.28277508,0.00036,5]
[322567684,1713071439384,-62876.62487447,0.00036,2]
[322567685,1713071439393,-887.638271,0.00036289,2]
[322567686,1713071439402,-1000.0,0.000368,3]
[322567687,1713071439410,-1152.0,0.00036882,2]
[322567688,1713071439419,-32303.13974244,0.0003717,2]
[322567689,1713071439428,-441.74839954,0.0004,2]
[322567690,1713071439437,-1613.0,0.0004057,3]
[322567691,1713071439446,-1061.90418992,0.00041,4]
[322567692,1713071439455,-712.563984,0.00041553,120]
[322567693,1713071439463,-160.43501308,0.0004195,2]
[322567694,1713071439472,-443.58587653,0.00042,120]
[322567695,1713071439482,-2000.0,0.00042,35]
[322567696,1713071439491,-2000.0,0.0004201,35]
[322567697,1713071439500,-2000.0,0.0004202,35]
[322567698,1713071439509,-2000.0,0.0004203,35]
[322567699,1713071439518,-2000.0,0.0004204,35]
[322567700,1713071439527,-2000.0,0.0004205,35]
[322567701,1713071439536,-2000.0,0.0004206,35]
[322567702,1713071439545,-2000.0,0.0004207,35]
[322567703,1713071439554,-2000.0,0.0004208,35]
[322567704,1713071439563,-2000.0,0.0004209,35]
[322567705,1713071439572,-2000.0,0.000421,36]
[322567706,1713071439581,-160.43501306,0.00042105,2]
[322567707,1713071439590,-2000.0,0.0004211,36]
[322567708,1713071439599,-2000.0,0.0004212,36]
[322567709,1713071439607,-2000.0,0.0004213,36]
[322567710,1713071439616,-2000.0,0.0004214,36]
[322567711,1713071439625,-2000.0,0.0004215,36]
[322567712,1713071439634,-2000.0,0.0004216,36]
[322567713,1713071439642,-2000.0,0.0004217,36]
[322567714,1713071439651,-2000.0,0.0004218,36]
[322567715,1713071439660,-2000.0,0.0004219,36]
[322567716,1713071439669,-2000.0,0.000422,36]
[322567717,1713071439678,-1788.819534,0.000422,38]
[322567718,1713071439687,-2000.0,0.0004221,36]
[322567719,1713071439696,-2000.0,0.0004222,36]
[322567720,1713071439705,-2000.0,0.0004223,36]
[322567721,1713071439714,-2000.0,0.0004224,36]
[322567722,1713071439724,-2000.0,0.0004225,36]
[322567723,1713071439735,-2000.0,0.0004226,36]
[322567724,1713071439744,-160.43501306,0.00042261,2]
[322567725,1713071439753,-3951.775972,0.0004227,36]
[322567726,1713071439762,-2699.65263193,0.00042302,30]
[322567727,1713071439770,-3680.98524717,0.0004238,48]
[322567728,1713071439779,-516.40437106,0.000424,120]
[322567729,1713071439788,-5750.59863167,0.00042415,2]
[322567730,1713071439798,-2484.60579234,0.00042416,2]
[322567731,1713071439807,-160.43501306,0.00042416,2]
[322567732,1713071439816,-1999.87158639,0.00042463,15]
[322567733,1713071439824,-150.5,0.00042485,35]
[322567734,1713071439833,-150.5,0.00042485,35]
[322567735,1713071439842,-150.5,0.00042495,35]
[322567736,1713071439852,-150.5,0.00042495,35]
[322567737,1713071439863,-155.0,0.00042497,35]
[322567738,1713071439873,-225.54747008,0.000425,7]
[322567739,1713071439888,-13999.77999906,0.000425,2]
[322567740,1713071439903,-2151.20020765,0.000425,30]
[322567741,1713071439913,-150.5,0.00042503,35]
[322567742,1713071439923,-2536.0,0.00042503,35]
[322567745,1713071439933,-1315.09632876,0.00042504,4]
[322567747,1713071439945,-150.5,0.00042505,35]
[322567748,1713071440020,-150.5,0.00042505,35]
[322567749,1713071440031,-150.5,0.00042505,35]
[322567750,1713071440042,-598.27883173,0.00042506,2]
[322567751,1713071440052,-150.5,0.00042513,35]
[322567752,1713071440061,-2536.0,0.00042513,35]
[322567753,1713071440071,-8164.218566,0.00042516,7]
[322567754,1713071440082,-8164.218566,0.00042516,7]
[322567755,1713071440092,-151.0,0.00042516,7]
[322567756,1713071440101,-1461.171596,0.00042516,7]
[322567757,1713071440110,-1461.171596,0.00042516,7]
[322567758,1713071440119,-716.203907,0.00042516,7]
[322567759,1713071440129,-716.203907,0.00042516,7]
[322567760,1713071440139,-281.760713,0.00042516,7]
[322567761,1713071440149,-281.760713,0.00042516,7]
[322567762,1713071440158,-2536.0,0.00042523,35]
[322567763,1713071440167,-3104.56,0.00042532,7]
[322567764,1713071440176,-3104.56,0.00042532,7]
[322567765,1713071440185,-3104.56,0.00042532,7]
[322567766,1713071440194,-3104.56,0.00042532,7]
[322567767,1713071440204,-3104.56,0.00042532,7]
[322567768,1713071440213,-3104.56,0.00042532,7]
[322567769,1713071440222,-3104.56,0.00042532,7]
[322567770,1713071440232,-3104.56,0.00042532,7]
[322567771,1713071440241,-3104.56,0.00042532,7]
[322567772,1713071440250,-3104.56,0.00042532,7]
[322567773,1713071440259,-206.789637,0.00042533,7]
[322567774,1713071440268,-206.789637,0.00042533,7]
[322567775,1713071440277,-206.789637,0.00042533,7]
[322567776,1713071440287,-206.789637,0.00042533,7]
[322567777,1713071440296,-151.0,0.00042533,7]
[322567778,1713071440305,-151.0,0.00042533,7]
[322567779,1713071440314,-151.0,0.00042533,7]
[322567781,1713071440324,-151.0,0.00042533,7]
[322567783,1713071440333,-151.0,0.00042533,7]
[322567785,1713071440342,-151.0,0.00042533,7]
[322567786,1713071440351,-151.0,0.00042533,7]
[322567788,1713071440361,-170.63252,0.00042533,7]
[322567790,1713071440370,-170.63252,0.00042533,7]
[322567791,1713071440379,-170.63252,0.00042533,7]
[322567793,1713071440387,-170.63252,0.00042533,7]
[322567794,1713071440396,-151.0,0.00042533,7]
[322567795,1713071440405,-151.0,0.00042533,7]
[322567796,1713071440414,-623.639898,0.00042533,7]
[322567797,1713071440423,-623.639898,0.00042533,7]
[322567798,1713071440432,-686895.63116631,0.00042533,30]
[322567799,1713071440500,17617.27977113,0.00020156,2]
[322567800,1713071440528,-408.16438819,0.00024994,2]
[322567801,1713071440538,-3743.22142762,0.00042533,30]
[322567802,1713071440554,-2355.26478755,0.00042533,30]
[322567803,1713071440565,-7560.46414276,0.00042533,30]
[322567804,1713071440856,16063.99972631,0.00020156,2]
[322567808,1713071442507,385.30778688,0.00020156,2]
[322567818,1713071442649,284.81223636,0.00020156,2]
[322567837,1713071443149,-623.639898,0.00042533,7]
[322567838,1713071443158,-359.63444514,0.00042533,7]
[322567839,1713071443170,-264.00545286,0.00042533,7]
[322567844,1713071443243,-668.19001951,0.00042533,30]
[322567860,1713071444014,162.79164755,0.00020156,2]
[322567868,1713071445731,691.63145155,0.00020156,2]
[322567871,1713071446515,-970.87276791,0.00042533,30]
[322567872,1713071446527,-3040.39570742,0.00042533,30]
[322567873,1713071446547,-830.6395,0.00042533,30]
[322567874,1713071446564,-422.22153081,0.00042533,30]
[322567876,1713071456658,284.81223636,0.00020156,2]
[322567877,1713071460501,385.30778688,0.00020156,2]
[322567878,1713071462857,15216.70201652,0.00020156,2]
[322567879,1713071465156,2003.31674371,0.0001112,120]
[322567880,1713071468024,168.27767592,0.00020156,2]
[322567882,1713071482651,284.81223636,0.00020156,2]
[322567883,1713071484485,385.30778688,0.00020156,2]
[322567884,1713071499903,65.47692188,0.00020156,2]
[322567885,1713071499938,129.39713289,0.00020156,2]
[322567886,1713071508501,519.04618812,0.00020156,2]
[322567888,1713072573185,-441.84342042,0.000224,2]
[322567889,1713072590313,1074.02813269,0.000203,2]
[322567921,1713072632140,-467.40907987,0.00022395,2]
[322567922,1713072632150,-538.85499397,0.00022396,2]
[322567923,1713072632160,-500.0,0.00022397,2]
[322567925,1713072632171,-1088.50885786,0.00022397,2]
[322567926,1713072632182,-300.0,0.00022397,2]
[322567927,1713072632192,-7853.36285856,0.00022398,2]
[322567928,1713072632202,-608.9706492,0.00022398,2]
[322567929,1713072632211,-1618.41046623,0.00022399,2]
[322567931,1713072632221,-154.98450155,0.00022399,2]
[322567933,1713072632230,-1653.66568483,0.000224,2]
[322567934,1713072632239,-1942.6796975,0.00022401,2]
[322567935,1713072632248,-250.0,0.00022401,2]
[322567936,1713072632258,-518.9022578,0.00022405,2]
[322567937,1713072632267,-611.5091338,0.00022406,2]
[322567938,1713072632277,-584.21482783,0.00023398,2]
[322567939,1713072632287,-4725.80792748,0.00023401,2]
[322567940,1713072632296,-35430.6174914,0.00023403,2]
[322567941,1713072632306,-1033.47463686,0.00023416,2]
[322567942,1713072632316,-1266.275777,0.00023521,2]
[322567943,1713072632325,-1441.7639101,0.00023611,2]
[322567944,1713072632335,-200.0,0.00024239,2]
[322567945,1713072632344,-420.0,0.00024636,2]
[322567946,1713072632354,-186.356787,0.00024676,2]
[322567947,1713072632364,-924.52166398,0.00025,2]
[322567948,1713072632373,-1074.02813269,0.000253,2]
[322567949,1713072632383,-500.0,0.00026556,2]
[322567950,1713072632392,-500.0,0.00026556,2]
[322567951,1713072632402,-327.78737273,0.00026556,2]
[322567952,1713072632411,-24900.0,0.00026557,2]
[322567953,1713072632421,-1303.2072643,0.00026915,2]
[322567954,1713072632430,-587.0,0.000271,2]
[322567955,1713072632440,-166.666666,0.00027397,2]
[322567956,1713072632452,-754.89389578,0.000274,2]
[322567957,1713072632461,-217.81749,0.00027754,2]
[322567958,1713072632471,-217.81749,0.00027754,120]
[322567959,1713072632480,-166.666666,0.00028038,2]
[322567960,1713072632490,-715.80349736,0.00028107,2]
[322567961,1713072632499,-166.666666,0.00028679,2]
[322567962,1713072632508,-166.666666,0.00029321,2]
[322567963,1713072632518,-1033.47463685,0.0002945,4]
[322567964,1713072632528,-823.0,0.0002981,2]
[322567965,1713072632538,-166.666666,0.00029962,2]
[322567966,1713072632548,-166.666666,0.00030603,2]
[322567967,1713072632557,-210.74041414,0.00031899,4]
[322567968,1713072632568,-1152.0,0.00032791,2]
[322567969,1713072632579,-155.43711806,0.00033878,4]
[322567970,1713072632590,-1266.275777,0.00035282,2]
[322567971,1713072632600,-1033.47463685,0.00035484,7]
[322567972,1713072632609,-534.422988,0.00035616,120]
[322567973,1713072632620,-154.98450155,0.00035997,2]
[322567974,1713072632630,-215.48745187,0.00035998,4]
[322567975,1713072632639,-212.0,0.0003607,2]
[322567976,1713072632649,-2896.45430928,0.00037468,5]
[322567977,1713072632659,-163.752106,0.00037472,2]
[322567978,1713072632669,-1407.60638131,0.00040399,4]
[322567979,1713072632679,-309.87603103,0.000404,4]
[322567980,1713072632688,-495.81185964,0.000404,4]
[322567981,1713072632699,-1061.90418992,0.00041,4]
[322567982,1713072632719,-502.79352216,0.00041518,10]
[322567983,1713072632733,-530.68111469,0.00041518,10]
[322567984,1713072632743,-388.42045515,0.00041553,120]
[322567985,1713072632820,-146.00253285,0.00041553,120]
[322567986,1713072632830,-1078.91887236,0.0004192,2]
[322567987,1713072632840,-819.80013339,0.00042,35]
[322567988,1713072632864,-490.5000166,0.00042,35]
[322568053,1713072638256,-689.69985001,0.00042,35]
[322568055,1713072638266,-2000.0,0.0004201,35]
[322568057,1713072638276,-2000.0,0.0004202,35]
[322568059,1713072638285,-2000.0,0.0004203,35]
[322568061,1713072638295,-2000.0,0.0004204,35]
[322568062,1713072638304,-1078.91887236,0.00042048,2]
[322568064,1713072638313,-2000.0,0.0004205,35]
[322568066,1713072638322,-2000.0,0.0004206,35]
[322568069,1713072638332,-2000.0,0.0004207,35]
[322568072,1713072638341,-2000.0,0.0004208,35]
[322568075,1713072638351,-2000.0,0.0004209,35]
[322568078,1713072638360,-2000.0,0.000421,36]
[322568081,1713072638369,-2000.0,0.0004211,36]
[322568084,1713072638379,-2000.0,0.0004212,36]
[322568087,1713072638388,-2000.0,0.0004213,36]
[322568089,1713072638398,-2000.0,0.0004214,36]
[322568091,1713072638407,-2000.0,0.0004215,36]
[322568093,1713072638416,-2000.0,0.0004216,36]
[322568095,1713072638425,-2000.0,0.0004217,36]
[322568097,1713072638435,-1078.91887236,0.00042176,2]
[322568099,1713072638444,-2000.0,0.0004218,36]
[322568101,1713072638454,-2000.0,0.0004219,36]
[322568103,1713072638463,-2000.0,0.000422,36]
[322568105,1713072638472,-1788.819534,0.000422,38]
[322568106,1713072638481,-2000.0,0.0004221,36]
[322568107,1713072638490,-2000.0,0.0004222,36]
[322568108,1713072638499,-2000.0,0.0004223,36]
[322568109,1713072638508,-2000.0,0.0004224,36]
[322568110,1713072638517,-2000.0,0.0004225,36]
[322568111,1713072638525,-2000.0,0.0004226,36]
[322568112,1713072638534,-1973.327654,0.00042269,4]
[322568113,1713072638543,-2000.0,0.0004227,36]
[322568114,1713072638552,-2000.0,0.0004228,36]
[322568115,1713072638561,-2000.0,0.0004229,36]
[322568116,1713072638569,-2000.0,0.000423,36]
[322568117,1713072638578,-1078.91887236,0.00042304,2]
[322568118,1713072638587,-2000.0,0.0004231,37]
[322568119,1713072638596,-2000.0,0.0004232,37]
[322568120,1713072638604,-2000.0,0.0004233,37]
[322568121,1713072638615,-2000.0,0.0004234,37]
[322568122,1713072638624,-2000.0,0.0004235,37]
[322568123,1713072638633,-2000.0,0.0004236,37]
[322568124,1713072638642,-2000.0,0.0004237,37]
[322568125,1713072638652,-2000.0,0.0004238,37]
[322568126,1713072638660,-3455.08,0.00042389,7]
[322568127,1713072638669,-3455.08,0.00042389,7]
[322568128,1713072638678,-3455.08,0.00042389,7]
[322568129,1713072638687,-3455.08,0.00042389,7]
[322568130,1713072638696,-3455.08,0.00042389,7]
[322568131,1713072638706,-3455.08,0.00042389,7]
[322568132,1713072638715,-3455.08,0.00042389,7]
[322568133,1713072638724,-3455.08,0.00042389,7]
[322568134,1713072638733,-3455.08,0.00042389,7]
[322568135,1713072638742,-3455.08,0.00042389,7]
[322568136,1713072638751,-215.28909108,0.00042389,31]
[322568137,1713072638760,-500.0,0.00042389,31]
[322568138,1713072638769,-500.0,0.00042389,31]
[322568139,1713072638779,-500.0,0.00042389,31]
[322568140,1713072638789,-571.14410794,0.00042389,31]
[322568141,1713072638798,-381.77665787,0.00042389,31]
[322568142,1713072638808,-500.0,0.00042389,31]
[322568143,1713072638817,-500.0,0.00042389,31]
[322568144,1713072638826,-170.35637232,0.00042389,31]
[322568146,1713072638835,-500.0,0.00042389,31]
[322568147,1713072638844,-500.0,0.00042389,31]
[322568149,1713072638854,-500.0,0.00042389,31]
[322568151,1713072638863,-500.0,0.00042389,31]
[322568153,1713072638873,-500.0,0.00042389,31]
[322568155,1713072638882,-500.0,0.00042389,31]
[322568157,1713072638892,-500.0,0.00042389,31]
[322568159,1713072638901,-500.0,0.00042389,31]
[322568161,1713072638911,-184.03228928,0.00042389,31]
[322568163,1713072638921,-500.0,0.00042389,31]
[322568165,1713072638930,-509.13842727,0.00042389,31]
[322568167,1713072638939,-500.0,0.00042389,31]
[322568169,1713072638949,-500.0,0.00042389,31]
[322568171,1713072638958,-239882.79560467,0.0004239,5]
[322568173,1713072638967,-2000.0,0.0004239,37]
[322568176,1713072638977,-2000.0,0.000424,37]
[322568177,1713072638986,-2000.0,0.0004241,37]
[322568180,1713072638999,-2000.0,0.0004242,37]
[322568181,1713072639008,-2000.0,0.0004243,37]
[322568183,1713072639017,-3192.71681173,0.00042432,2]
[322568185,1713072639028,-1078.91887236,0.00042432,2]
[322568187,1713072639037,-5750.59863167,0.00042433,2]
[322568190,1713072639048,-2000.0,0.0004244,37]
[322568192,1713072639058,-2000.0,0.0004245,37]
[322568194,1713072639068,-2000.0,0.0004246,37]
[322568195,1713072639077,-2000.0,0.0004247,37]
[322568197,1713072639088,-2000.0,0.0004248,37]
[322568199,1713072639100,-356.82248964,0.00042489,4]
[322568201,1713072639110,-2000.0,0.0004249,37]
[322568203,1713072639120,-225.54747008,0.000425,30]
[322568205,1713072639130,-2151.20020765,0.000425,30]
[322568208,1713072639140,-2000.0,0.000425,37]
[322568209,1713072639150,-150.5,0.00042503,35]
[322568211,1713072639159,-252.33,0.00042503,35]
[322568214,1713072639171,-2536.0,0.00042503,35]
[322568216,1713072639181,-2000.0,0.0004251,37]
[322568218,1713072639191,-276.77,0.00042513,35]
[322568219,1713072639201,-150.5,0.00042513,35]
[322568222,1713072639212,-150.5,0.00042513,35]
[322568223,1713072639221,-2536.0,0.00042513,35]
[322568225,1713072639230,-169.49,0.00042513,35]
[322568227,1713072639239,-2000.0,0.0004252,37]
[322568229,1713072639248,-150.5,0.00042523,35]
[322568232,1713072639259,-150.5,0.00042523,35]
[322568233,1713072639268,-150.5,0.00042523,35]
[322568235,1713072639277,-2536.0,0.00042523,35]
[322568246,1713072639366,-150.5,0.00042523,35]
[322568248,1713072639376,-1000.0,0.00042528,30]
[322568250,1713072639385,-598.27883173,0.00042529,2]
[322568252,1713072639394,-1315.09632876,0.00042529,4]
[322568254,1713072639403,-357.13699583,0.0004253,2]
[322568256,1713072639413,-2000.0,0.0004253,38]
[322568258,1713072639421,-1313.66748195,0.00042531,120]
[322568260,1713072639430,-246.076228,0.00042531,4]